Cogmind - Beta 17.1 @@@ ROGUE MODE // 2026.09.16 @ 16:38:47 Player: MAXX-P31 Result: Destroyed self via exploding Fusion Modulator Performance ------------- Evolutions (5) 2500 Regions Visited (13) 2600 Robots Destroyed (369) 1845 Value Destroyed (14440) 14440 Prototype IDs (16) 320 Alien Tech Used (0) 0 Bonus (4798) 4798 TOTAL SCORE: 26503 Bonus ------- High Alert Combat Kills 2474 Follower Combat Kills 224 Entered Garrisons 600 Used RIF Installer 1500 Cogmind --------- Core Integrity 0/1000 Matter 236/300 Energy 96/100 System Corruption 79% Temperature Cool (12) Movement Core (200) Ox3 Location -5/Factory Parts ------- > --- POWER (2) -------- (None) > --- PROPULSION (4) --- (None) > --- UTILITY (7) ------ (None) > --- WEAPON (4) ------- Magnetic Acceleration Cannon Improved Plasma Cutter > --- INVENTORY (5) ---- Heavy Antimatter Reactor Relay Coupler [NC] (31) Peak State ------------ > --- POWER ------------ Heavy Antimatter Reactor Heavy Antimatter Reactor > --- PROPULSION ------- Light Treads Armored Treads Improved Heavy Treads > --- UTILITY ---------- Huge Storage Unit Advanced Signal Interpreter Advanced Targeting Computer Core Analyzer Layered Medium Armor Plating Relay Coupler [Grunt] Advanced Dynamic Insulation System > --- WEAPON ----------- Heavy Laser Cooled Plasma Rifle Precision Phase Gun Graviton Cannon > --- INVENTORY -------- Improved Deuterium Engine Heavy Antimatter Reactor Improved Heavy Treads Advanced Heat Sink Advanced Heat Sink Improved Cooling System Improved Cooling System High-capacity Storage Unit High-capacity Battery Energy Well Matter Compressor Advanced Sensor Array Advanced Terrain Scanner Layered Medium Armor Plating Graphene Brace Relay Coupler [NC] Relay Coupler [NC] Relay Coupler [Grunt] Cooled Plasma Rifle Proton Cannon Heavy Plasma Cannon Remote Datajack Improved Plasma Cutter [Rating: 104] Favorites ----------- Power Reinforced Deuterium Engine Engine Reinforced Deuterium Engine Power Core Nuclear Core Reactor Light Antimatter Reactor Propulsion Light Treads Treads Light Treads Leg Flexi-carbon Leg Utility Improved Heat Sink Device Improved Heat Sink Storage Huge Storage Unit Processor Core Analyzer Hackware Relay Coupler [Grunt] Protection Layered Medium Armor Plating Weapon Particle Gun Energy Gun Particle Gun Energy Cannon Plasma Cannon Ballistic Gun Heavy Machine Gun Ballistic Cannon Graviton Cannon Launcher Missile Launcher Special Weapon Remote Datajack Slashing Weapon Segregator Build | -11 -10 -9 -8 -8 -8 -7 -6 -6 -5 -5 -5 -5 -5 ------- Run | Yrd Mat Mat Mat Gar Mat Fac Fac Gar Fac Was Fac Gar Fac Slots Evolved 10 | . . 2 2 . . 2 2 . 2 . . . . Power 1 | . . . . . . 1 . . . . . . . Propulsion 2 | . . . 1 . . . . . 1 . . . . Utility 5 | . . 1 1 . . 1 1 . 1 . . . . Weapon 2 | . . 1 . . . . 1 . . . . . . Parts Attached 192 | 7 6 9 23 11 23 30 26 4 5 6 24 16 2 Power 24 | 1 1 1 2 2 2 4 4 1 . 1 3 2 . Engine 15 | 1 1 1 2 1 1 2 3 . . . 1 2 . Core 5 | . . . . 1 1 2 1 . . . . . . Reactor 4 | . . . . . . . . 1 . 1 2 . . Propulsion 47 | 2 . 2 8 4 7 7 7 . 1 1 2 6 . Treads 42 | 2 . 2 8 4 7 7 7 . 1 1 2 1 . Leg 5 | . . . . . . . . . . . . 5 . Wheel . | . . . . . . . . . . . . . . Hover . | . . . . . . . . . . . . . . Flight . | . . . . . . . . . . . . . . Utility 59 | 2 3 2 5 . 6 12 8 2 3 4 9 3 . Device 38 | 1 1 2 3 . 5 6 6 2 2 4 4 2 . Storage 8 | 1 2 . 1 . . 2 1 . . . 1 . . Processor 6 | . . . 1 . . 3 . . 1 . 1 . . Hackware 2 | . . . . . . . . . . . 1 1 . Protection 5 | . . . . . 1 1 1 . . . 2 . . Artifact . | . . . . . . . . . . . . . . Weapon 62 | 2 2 4 8 5 8 7 7 1 1 . 10 5 2 Energy Gun 41 | . 2 4 8 1 6 6 4 . . . 6 4 . Energy Cannon 7 | . . . . 3 . 1 . 1 1 . . 1 . Ballistic Gun 7 | 2 . . . 1 1 . 3 . . . . . . Ballistic Cannon 2 | . . . . . . . . . . . 1 . 1 Launcher 2 | . . . . . 1 . . . . . 1 . . Special Weapon 2 | . . . . . . . . . . . 1 . 1 Impact Weapon . | . . . . . . . . . . . . . . Slashing Weapon 1 | . . . . . . . . . . . 1 . . Piercing Weapon . | . . . . . . . . . . . . . . Special Melee Weapon . | . . . . . . . . . . . . . . Unidentified Prototypes 9 | . . 1 1 . . 1 1 . . . 5 . . Corrupted Parts 9 | . . . . . . . . . . . 8 1 . System Corruption 73 | . . . . . . . . . . . 64 9 . Parts Lost 54 | . . 1 1 4 7 8 2 2 . . 7 21 1 Power 9 | . . . 1 1 1 1 . . . . 2 3 . Propulsion 18 | . . 1 . 1 2 4 . . . . 2 7 1 Utility 9 | . . . . . 3 2 . . . . 1 3 . Weapon 18 | . . . . 2 1 1 2 2 . . 2 8 . Highest Loss Streak 10 | . . 1 1 2 6 7 1 2 . . 6 10 1 To Critical Strikes 3 | . . . . 2 . . . . . . 1 . . Average Backups 20 | 1 10 19 19 18 19 23 23 23 24 25 24 22 2 Power 1 | . 1 2 1 . . . . 1 1 1 1 2 1 Propulsion 2 | . 3 3 2 2 3 4 2 3 3 3 2 . . Utility 9 | . 1 5 7 8 8 10 11 13 15 14 15 15 1 Weapon 5 | . 3 8 7 5 5 8 8 5 4 3 3 2 . Tool/Special . | . . . . . . . . . . . . . . Unused Backups 55 | 1 2 11 8 . 2 4 7 1 1 2 3 12 1 Power 6 | . 1 2 1 . . . 1 . . . . 1 . Propulsion 9 | 1 . 1 . . . 1 4 . . 1 1 . . Utility 20 | . 1 1 . . 2 1 2 . 1 1 . 10 1 Weapon 18 | . . 7 7 . . 1 . 1 . . 1 1 . Tool/Special 2 | . . . . . . 1 . . . . 1 . . Average Slot Usage (%) 96 | . 99 98 99 99 99 98 99 96 99 96 92 87 12 Engine 7 | . 14 10 8 7 3 7 11 9 5 2 . 4 . Core 1 | . . . . 1 5 6 . . . . . . . Reactor 1 | . . . . . . . . 3 5 7 10 5 . Treads 21 | . 28 21 27 26 26 22 19 20 23 19 16 5 4 Device 18 | . 14 21 20 18 17 20 23 20 17 23 13 16 . Storage 7 | . 14 11 9 9 9 7 6 6 5 5 5 4 . Processor 7 | . . . 6 9 9 8 6 6 10 11 13 16 . Energy Gun 18 | . 14 33 26 17 21 22 16 7 5 5 13 11 . Energy Cannon 2 | . . . . 5 2 . . 9 11 17 7 4 . Ballistic Gun 3 | . 13 . . 4 2 . 9 5 4 . . . . Peak Build Rating 104 | 7 13 22 38 41 41 48 72 76 80 84 104 100 25 Average Rating 48 | 5 10 19 31 36 38 42 63 72 79 81 88 87 19 On Entrance 44 | . 7 13 22 37 41 37 42 72 76 78 84 99 15 Avg Prop Armor Cover (%) 32 | . . . . . . . . . . . . 31 32 Naked Turns . | . . . . . . . . . . . . . . Heaviest Build 154 | 11 54 59 60 67 69 126 138 137 135 142 154 148 10 Greatest Support 128 | 40 40 40 65 70 70 70 78 78 98 120 128 115 3 Greatest Overweight (x) 47 | . 1 1 2 1 1 3 3 1 1 1 2 47 3 Average Overweight (x) . | . . 1 . . . 1 1 1 1 1 1 1 . Largest Inventory Capacity 25 | 8 20 20 20 20 20 25 25 25 25 25 25 25 5 Average Capacity 21 | 6 13 20 20 20 20 24 25 25 25 25 25 24 5 Most Carried 25 | 3 15 20 20 20 20 25 25 25 25 25 25 25 3 Average Carried 20 | 1 10 19 19 18 19 23 24 24 24 25 24 23 2 Final Capacity 25 | 8 20 20 20 20 20 25 25 25 25 25 25 5 5 Final Carried 25 | 2 15 20 20 20 20 25 25 25 25 25 23 3 2 Class Distribution -------------------- 54% | Scavenger-Gunner 18% | Scavenger-Tank 10% | Mutant 8% | Gunner 5% | Bothacker-Gunner Dominant Class ---------------- Mutant | -10/Materials Scavenger-Gunner | -9/Materials Scavenger-Gunner | -8/Materials Scavenger-Gunner | -8/Garrison Gunner | -8/Materials Scavenger-Gunner | -7/Factory Scavenger-Tank | -6/Factory Scavenger-Tank | -6/Garrison Scavenger-Gunner | -5/Factory Scavenger-Gunner | -5/Waste Scavenger-Gunner | -5/Factory Bothacker-Gunner | -5/Garrison Mutant | -5/Factory Resources | -11 -10 -9 -8 -8 -8 -7 -6 -6 -5 -5 -5 -5 -5 ----------- Run | Yrd Mat Mat Mat Gar Mat Fac Fac Gar Fac Was Fac Gar Fac Matter Collected 4813 | 288 276 130 315 309 490 429 1335 149 24 100 419 549 . Remotely . | . . . . . . . . . . . . . . Salvage Created 17326 | 110 548 1329 1896 1291 1833 2179 3537 118 25 763 2624 1073 . Parts 721 | 5 31 74 84 37 107 83 157 3 4 6 103 27 . Haulers Intercepted 21 | . 2 3 5 . 4 2 2 . . . 3 . . Recyclers Shooed 19 | . 4 2 1 . 2 1 2 . . . 7 . . Parts Field Recycled . | . . . . . . . . . . . . . . Retrieved Matter . | . . . . . . . . . . . . . . Parts Self-Destructed . | . . . . . . . . . . . . . . Prevented . | . . . . . . . . . . . . . . Parts Restored . | . . . . . . . . . . . . . . Kills | -11 -10 -9 -8 -8 -8 -7 -6 -6 -5 -5 -5 -5 -5 ------- Run | Yrd Mat Mat Mat Gar Mat Fac Fac Gar Fac Was Fac Gar Fac Combat Hostiles Destroyed 259 | . 10 26 24 25 29 33 53 3 . 3 34 19 . Guns 191 | . 10 26 24 23 20 25 38 2 . . 14 9 . Cannons 29 | . . . . . 5 3 . 1 . 2 10 8 . AOE 26 | . . . . . 4 . 15 . . . 7 . . Classes Destroyed 20 | 2 5 2 2 2 3 2 . . . 1 1 . . Worker 22 | . . 4 3 . 3 1 10 . . . 1 . . Builder 17 | . 1 . . . 1 2 9 . . . 4 . . Tunneler 6 | 2 . . . . 2 1 . . . . 1 . . Hauler 21 | . 2 3 5 . 4 2 2 . . . 3 . . Recycler 29 | 1 2 2 6 . 2 6 7 . . . 3 . . Mechanic 1 | . . . . . . 1 . . . . . . . Operator 5 | . . . . . 2 . 1 . 1 . 1 . . Watcher 9 | . 1 3 2 . 2 1 . . . . . . . Swarmer 48 | . 6 7 2 7 2 3 13 1 . . 7 . . Saboteur 1 | . . . . . . . . . . . 1 . . Grunt 125 | . 4 12 15 13 16 17 24 2 . . 8 14 . Brawler 11 | . . . . 2 1 . 6 . . . 1 1 . Duelist 5 | . . . . 1 1 . . . . . 1 2 . Protector 2 | . . . . . 1 . 1 . . . . . . Sentry 22 | . . 7 5 . 4 3 2 . . . 1 . . Specialist 10 | . . . . . 2 2 2 . . . 3 1 . Hunter 11 | . . . 1 2 1 1 1 . . . 4 1 . Programmer 18 | . . . . . . 6 4 . . . 8 . . Heavy 3 | . . . 1 . 1 1 . . . . . . . Compactor 3 | . . . . . . . . . . 3 . . . Best Kill Streak 14 | 2 3 6 5 4 7 5 11 2 1 2 14 4 . Combat Bots Only 11 | . 3 6 4 4 5 4 9 2 . 2 11 4 . Max Kills in Single Turn 7 | 1 1 2 2 2 2 2 4 1 1 1 7 2 . Gunslinging 1 | . . 1 . 1 1 1 1 . . . . . . Exploded 6 | . . . . . 1 . 3 . . . 6 . . Melee . | . . . . . . . . . . . . . . Uniques/NPCs Destroyed . | . . . . . . . . . . . . . . Combat | -11 -10 -9 -8 -8 -8 -7 -6 -6 -5 -5 -5 -5 -5 -------- Run | Yrd Mat Mat Mat Gar Mat Fac Fac Gar Fac Was Fac Gar Fac Hostile Shots Fired 1391 | . 31 68 81 95 115 256 185 10 1 . 218 331 . Missed 422 | . 11 26 27 27 29 74 67 1 . . 58 102 . Hits 969 | . 20 42 54 68 86 182 118 9 1 . 160 229 . Melee 13 | . . . . 5 . . 1 . . . 2 5 . Projectile 956 | . 20 42 54 63 86 182 117 9 1 . 158 224 . Critical Strikes 42 | . . . 1 6 6 15 6 . . . 7 1 . Actively Blocked 8 | . . . . . . . 6 . . . 1 1 . Part Disruptions 3 | . . . . . . . . . . . 3 . . Damage Taken 15038 | . 202 468 1017 959 1486 2301 1720 160 18 . 2963 3525 219 Core 2013 | . 28 55 197 99 140 234 237 19 . . 377 516 111 Absorbed by Shields 822 | . . . . 49 . 306 347 . . . . 120 . Regen/Repaired (Parts) 194 | . 10 184 . . . . . . . . . . . Core Remaining (%) 71 | 100 88 86 . . 20 66 . 69 . . . . . Volleys Fired 696 | 9 48 57 72 67 76 98 93 7 1 15 75 64 14 Largest 4 | 2 2 3 3 3 3 3 4 4 4 4 4 4 1 Hottest 313 | 40 130 195 184 215 181 210 265 253 253 313 313 258 44 Shots Fired 2059 | 18 96 165 214 196 213 284 331 23 4 59 244 199 13 Gun 1768 | 18 96 165 214 179 176 278 320 19 2 14 166 121 . Cannon 258 | . . . . 17 33 6 . 4 2 45 70 77 4 Launcher 19 | . . . . . 4 . 11 . . . 4 . . Special 14 | . . . . . . . . . . . 4 1 9 Kinetic 304 | 18 54 . . 19 31 . 136 7 1 . 5 29 4 Thermal 1713 | . 42 165 214 177 178 284 184 16 3 59 231 151 9 Explosive 15 | . . . . . 4 . 11 . . . . . . Electromagnetic 22 | . . . . . . . . . . . 4 18 . Robot Hit Streak 24 | 8 10 23 24 14 10 23 21 8 2 15 24 12 2 Robot Miss Streak 7 | 1 5 6 6 5 4 4 6 1 . 1 4 7 . Penetration Max 1 | . . . . . . . 1 . . . . . . Secondary Targets 44 | . . 8 2 10 5 3 11 1 . . 2 2 . Max Gunslinging Chain 2 | . . 1 1 1 1 1 2 1 . . 1 1 . Shots Hit Robots 1280 | 14 59 95 146 117 126 181 221 12 2 43 164 99 1 Core Hits 761 | 7 26 47 71 54 73 90 241 9 2 12 88 41 . Critical Kills 3 | . 1 . . . . . . . . 1 . 1 . Critical Parts Destroyed 2 | . 1 . . 1 . . . . . . . . . Critical Strikes 62 | . 4 5 13 7 3 12 4 1 . 1 5 7 . Burn 56 | . 2 5 13 6 3 12 4 1 . . 5 5 . Meltdown 2 | . . . . . . . . . . 1 . 1 . Destroy 3 | . 2 . . 1 . . . . . . . . . Blast 1 | . . . . . . . . . . . . 1 . Melee Attacks . | . . . . . . . . . . . . . . Impact . | . . . . . . . . . . . . . . Slashing . | . . . . . . . . . . . . . . Piercing . | . . . . . . . . . . . . . . Sneak Attacks . | . . . . . . . . . . . . . . Combat Hostiles . | . . . . . . . . . . . . . . Follow-up Attacks . | . . . . . . . . . . . . . . Damage Inflicted 30972 | 111 683 1514 2474 2174 3327 3479 7278 278 44 1158 5515 2917 20 Guns 21524 | 111 667 1514 2465 2021 2049 3344 4441 254 17 187 2883 1571 . Cannons 4565 | . . . . 150 538 128 . 24 27 971 1381 1346 . Explosions 4721 | . . . . . 690 . 2812 . . . 1219 . . Melee . | . . . . . . . . . . . . . . Ramming 147 | . 16 . 9 3 50 7 25 . . . 32 . 5 Kinetic 3292 | 111 284 . . 66 272 . 1549 94 . . 274 642 . Thermal 23189 | . 383 1514 2465 2105 2315 3472 2892 184 44 1158 4622 2020 15 Explosive 3347 | . . . . . 690 . 2657 . . . . . . Electromagnetic 997 | . . . . . . . 155 . . . 587 255 . Impact . | . . . . . . . . . . . . . . Slashing . | . . . . . . . . . . . . . . Piercing . | . . . . . . . . . . . . . . Highest Corruption 79 | . . . 3 15 15 7 8 8 . . 70 79 79 Average Corruption 17 | . . . 2 10 15 3 2 8 . . 47 76 79 Corruption Purged . | . . . . . . . . . . . . . . Corruption Blocked . | . . . . . . . . . . . . . . Effects 382 | . . . 27 64 69 40 20 18 . . 26 107 11 Message Errors 80 | . . . 8 10 21 7 5 5 . . 2 19 3 Matter Fused 72 | . . . 6 15 9 11 5 5 . . 4 16 1 Heat Flow Errors 32 | . . . 1 7 7 4 1 2 . . 4 6 . Energy Discharges 33 | . . . 1 6 10 2 2 1 . . 3 5 3 Parts Rejected 6 | . . . 1 1 3 . . . . . . 1 . Parts Fused 6 | . . . 1 2 . 1 . . . . . 2 . Data Loss (minor) 37 | . . . 2 9 5 5 1 2 . . 2 8 3 Data Loss (major) 14 | . . . 3 3 3 1 . 1 . . 1 2 . Misfires 19 | . . . 2 4 3 2 3 1 . . 1 3 . Alerts 7 | . . . . . . 3 1 1 . . . 2 . Misdirections 4 | . . . . . 1 . . . . . . 3 . Weapon Failures 72 | . . . 2 7 7 4 2 . . . 9 40 1 Overload Shots 2 | . . . . . . . . . . . 2 . . Overflow Damage 390 | . . . . . 30 . 74 . . . 171 104 11 Projectiles 196 | . . . . . 6 . . . . . 86 104 . Explosions 194 | . . . . . 24 . 74 . . . 85 . 11 Melee . | . . . . . . . . . . . . . . Knockbacks 11 | . 1 . . . 1 . . . . . 1 8 . Impact 2 | . 1 . . . 1 . . . . . . . . Kinetic 9 | . . . . . . . . . . . 1 8 . Secondary . | . . . . . . . . . . . . . . Self-Inflicted Damage 384 | . . . . . . . 97 . . . 68 . 219 Shots 7 | . . . . . . . 2 . . . 3 . 2 Rammed 25 | . 5 . 3 1 8 1 3 . . . 3 . 1 Targets Rammed 25 | . 5 . 3 1 8 1 3 . . . 3 . 1 Kicked . | . . . . . . . . . . . . . . Crushed . | . . . . . . . . . . . . . . Highest Temperature 540 | . 150 237 256 212 349 401 364 182 45 . 540 230 . Average Temperature 77 | . 36 66 39 44 71 83 89 64 30 . 172 72 . Received Heat Transfer 4500 | . 54 111 387 412 612 564 324 45 9 . 600 1382 . Effects 9 | . . 3 . . . 3 1 . . . 2 . . Shutdowns 2 | . . . . . . . 1 . . . 1 . . Energy Bleed 1 | . . . . . . . . . . . 1 . . Interference 4 | . . 3 . . . 1 . . . . . . . Short Circuit 1 | . . . . . . 1 . . . . . . . Damage (minor) 1 | . . . . . . 1 . . . . . . . Siege Activations . | . . . . . . . . . . . . . . Martial Activations . | . . . . . . . . . . . . . . Shielding Activations . | . . . . . . . . . . . . . . Robots Disrupted . | . . . . . . . . . . . . . . Combat Hostiles . | . . . . . . . . . . . . . . Robots Corrupted . | . . . . . . . . . . . . . . Combat Hostiles . | . . . . . . . . . . . . . . Parts Fried 2 | . . . . . . . . . . . 2 . . Impact Corruptions . | . . . . . . . . . . . . . . Robots Melted 18 | . . . 1 5 . 5 . . . 1 4 2 . Combat Hostiles 13 | . . . . 2 . 5 . . . 1 3 2 . Parts Melted 130 | . 2 9 21 11 5 34 13 . . . 28 7 . Heat Transferred 51183 | . 1036 3959 6623 4777 4750 8330 6788 485 87 2157 8111 4043 37 Parts Sabotaged 2 | . . . . . . . . . . . 2 . . Parts Stolen . | . . . . . . . . . . . . . . Parts Stripped . | . . . . . . . . . . . . . . Power Chain Reactions 3 | . . . . . . . . . . . 3 . . Alert | -11 -10 -9 -8 -8 -8 -7 -6 -6 -5 -5 -5 -5 -5 ------- Run | Yrd Mat Mat Mat Gar Mat Fac Fac Gar Fac Was Fac Gar Fac Maximum Alert Level 4 | . . 1 1 4 3 2 4 4 3 1 2 3 1 Low Security (%) 33 | 100 100 67 78 . . 12 . . . 89 75 . . Level 1 20 | . . 32 21 10 . 66 6 . . 10 14 10 100 Level 2 25 | . . . . 19 93 20 31 . 97 . 9 65 . Level 3 8 | . . . . 36 6 . 19 3 2 . . 24 . Level 4 12 | . . . . 32 . . 42 96 . . . . . Level 5 . | . . . . . . . . . . . . . . High Security . | . . . . . . . . . . . . . . Max Security . | . . . . . . . . . . . . . . Peak Influence 1462 | 10 136 298 315 1237 757 586 1462 1309 708 228 516 777 359 Initial 1017 | . . 16 53 202 602 335 280 1017 686 228 . 357 354 Average 442 | . 43 141 110 844 588 324 848 1191 631 90 149 599 343 Influence Increases 8873 | 15 324 773 759 1075 891 989 1848 312 202 6 1054 530 95 Destroy 0b10 Robot/C 5160 | . 200 520 480 500 560 660 1040 100 40 . 680 380 . Destroy 0b10 Robot/NC 575 | 15 30 60 80 15 85 70 150 . 5 . 65 . . Destroy Leader 1058 | . 56 132 154 40 162 196 172 . . . 116 30 . Allied During Kill 19 | . . . . . . . . 12 5 . 2 . . Successful Hack 87 | . 21 29 10 . 8 14 5 . . . . . . Disable Machine 585 | . . 30 . . 45 . 195 . 150 . 90 . 75 Anti-Garrison Action 900 | . . . . 500 . . 150 200 . . . 50 . Destroy Structure 249 | . 2 2 5 20 31 4 61 . 2 6 56 40 20 Partial Spotted 15 | . . . . . . . . . . . 15 . . Lose Combat Pursuer 225 | . 15 . 30 . . 45 75 . . . 30 30 . Influence Decreases 8534 | 15 285 683 576 150 1391 1152 968 457 857 660 544 363 433 Entered New Map 3502 | . . 23 76 110 635 402 294 437 623 426 . 153 323 Time Decay 4112 | 15 285 500 500 . 526 670 654 . 214 214 434 . 100 Lost Part 530 | . . 10 . 40 70 80 20 20 . . 70 210 10 Lost Ally 90 | . . . . . 10 . . . 20 20 40 . . Purge Threat 300 | . . 150 . . 150 . . . . . . . . Squads Dispatched 46 | . 2 1 7 . 6 10 11 . 2 . 7 . . Investigation 6 | . 2 . 1 . . 2 1 . . . . . . Extermination 9 | . . . . . . 4 3 . . . 2 . . Reinforcement 22 | . . 1 3 . 5 4 3 . 2 . 4 . . Assault 5 | . . . . . 1 . 4 . . . . . . Garrison 4 | . . . 3 . . . . . . . 1 . . Intercept . | . . . . . . . . . . . . . . Searches Triggered . | . . . . . . . . . . . . . . Construction Impeded 4 | . . . . . 1 . 1 . . . 2 . . Haulers Reinforced 3 | . . . . . . 1 . . 1 . 1 . . Active Scanning Responses . | . . . . . . . . . . . . . . Cargo Convoy Interrupts 1 | . . . . . . . . . . . 1 . . Stealth | -11 -10 -9 -8 -8 -8 -7 -6 -6 -5 -5 -5 -5 -5 --------- Run | Yrd Mat Mat Mat Gar Mat Fac Fac Gar Fac Was Fac Gar Fac Distress Signals 18 | . . 4 2 1 2 . 4 . . . 5 . . Communications Jammed . | . . . . . . . . . . . . . . Distress Signals . | . . . . . . . . . . . . . . Times Spotted 361 | . 20 37 35 27 38 39 73 6 2 6 55 22 1 Peak Tracking Total 12 | . 4 6 5 3 5 5 7 3 2 3 12 6 1 Tactical Retreats 13 | . 1 . 2 . . 3 3 . . . 2 2 . Traps | -11 -10 -9 -8 -8 -8 -7 -6 -6 -5 -5 -5 -5 -5 ------- Run | Yrd Mat Mat Mat Gar Mat Fac Fac Gar Fac Was Fac Gar Fac Traps Triggered 28 | . 3 . 4 5 . 3 1 1 1 . 1 9 . Indirectly . | . . . . . . . . . . . . . . Trap Hack Attempts . | . . . . . . . . . . . . . . Triggered . | . . . . . . . . . . . . . . Disarmed . | . . . . . . . . . . . . . . Reprogrammed . | . . . . . . . . . . . . . . Reused . | . . . . . . . . . . . . . . Traps Extracted . | . . . . . . . . . . . . . . Installed . | . . . . . . . . . . . . . . Triggered . | . . . . . . . . . . . . . . Machines | -11 -10 -9 -8 -8 -8 -7 -6 -6 -5 -5 -5 -5 -5 ---------- Run | Yrd Mat Mat Mat Gar Mat Fac Fac Gar Fac Was Fac Gar Fac Machines Disabled 48 | . . 2 . 5 3 . 14 2 10 . 6 1 5 Max in Single Turn 5 | . . 1 . 1 1 . 5 1 . . 2 1 1 Garrison Access 2 | . . . . . . 1 1 . . . . . . Garrison Relay 8 | . . . . 5 . . . 2 . . . 1 . Machines Repaired . | . . . . . . . . . . . . . . Machines Dismantled 3 | . . . . . . . . . . . . . 3 Machines Sabotaged . | . . . . . . . . . . . . . . Overloaded Fab Kills . | . . . . . . . . . . . . . . Hacking | -11 -10 -9 -8 -8 -8 -7 -6 -6 -5 -5 -5 -5 -5 --------- Run | Yrd Mat Mat Mat Gar Mat Fac Fac Gar Fac Was Fac Gar Fac Machines Accessed 58 | . 8 11 8 4 5 10 5 2 1 . 3 1 . Terminals 39 | . 7 7 6 4 4 4 2 2 1 . 1 1 . Fabricators 5 | . . . . . . 2 2 . . . 1 . . Repair Stations 5 | . 1 2 . . . 2 . . . . . . . Recycling Units . | . . . . . . . . . . . . . . Scanalyzers 5 | . . 2 1 . 1 1 . . . . . . . Garrison Access 4 | . . . 1 . . 1 1 . . . 1 . . Total Hacks 137 | . 19 40 24 8 8 18 9 3 2 . 3 3 . Successful 56 | . 12 23 10 1 4 2 3 . . . 1 . . Failed 79 | . 6 16 14 7 4 16 6 3 2 . 2 3 . Catastrophic 16 | . . . 2 2 1 5 2 1 1 . 1 1 . Database Lockouts 2 | . 1 1 . . . . . . . . . . . Manual 57 | . 10 14 17 . 4 8 3 . . . 1 . . Terminals 93 | . 16 22 20 8 6 7 5 3 2 . 1 3 . Fabricators 8 | . . . . . . 4 3 . . . 1 . . Repair Stations 13 | . 3 7 . . . 3 . . . . . . . Recycling Units . | . . . . . . . . . . . . . . Scanalyzers 19 | . . 11 3 . 2 3 . . . . . . . Garrison Access 4 | . . . 1 . . 1 1 . . . 1 . . Terminal Hacks 19 | . 7 6 3 1 1 . 1 . . . . . . Robot Analysis 3 | . 1 1 1 . . . . . . . . . . Prototype ID Bank 5 | . 3 2 . . . . . . . . . . . Level Access Points 1 | . 1 . . . . . . . . . . . . Emergency Access Points 2 | . 1 . . 1 . . . . . . . . . Alert Level 2 | . . 1 1 . . . . . . . . . . Unreport Threat 2 | . . 1 . . 1 . . . . . . . . Hauler Manifests 4 | . 1 1 1 . . . 1 . . . . . . Fabricator Hacks . | . . . . . . . . . . . . . . Repair Station Hacks 7 | . 2 5 . . . . . . . . . . . Scan Component 4 | . 1 3 . . . . . . . . . . . Repair 3 | . 1 2 . . . . . . . . . . . Recycling Unit Hacks . | . . . . . . . . . . . . . . Scanalyzer 13 | . . 9 2 . 2 . . . . . . . . Insert Component 4 | . . 4 . . . . . . . . . . . Analyze 4 | . . 4 . . . . . . . . . . . Retrieve Study 5 | . . 1 2 . 2 . . . . . . . . Garrison Access Hacks 4 | . . . 1 . . 1 1 . . . 1 . . Unlock Access 3 | . . . 1 . . . 1 . . . 1 . . Seal Access 1 | . . . . . . 1 . . . . . . . Unauthorized Hacks 13 | . 3 3 4 . 1 1 1 . . . . . . Terminals 12 | . 3 3 4 . 1 1 . . . . . . . Assimilate 1 | . . . . . 1 . . . . . . . . Botnet 11 | . 3 3 4 . . 1 . . . . . . . Fabricators 1 | . . . . . . . 1 . . . . . . Haulers 1 | . . . . . . . 1 . . . . . . Repair Stations . | . . . . . . . . . . . . . . Recycling Units . | . . . . . . . . . . . . . . Scanalyzers . | . . . . . . . . . . . . . . Garrison Access . | . . . . . . . . . . . . . . Data Cores Recovered 1 | . . . . . . . 1 . . . . . . Used . | . . . . . . . . . . . . . . Hacking Detections 48 | . 5 9 7 4 3 9 4 2 1 . 3 1 . Full Trace Events 6 | . . . 1 3 . 1 1 . . . . . . Feedback Events . | . . . . . . . . . . . . . . Feedback Blocked . | . . . . . . . . . . . . . . Robot Schematics Acquired . | . . . . . . . . . . . . . . Robots Built . | . . . . . . . . . . . . . . Authchips . | . . . . . . . . . . . . . . Time . | . . . . . . . . . . . . . . Total Robot Build Rating . | . . . . . . . . . . . . . . Part Schematics Acquired 4 | . . 4 . . . . . . . . . . . Parts Built . | . . . . . . . . . . . . . . Authchips . | . . . . . . . . . . . . . . Time . | . . . . . . . . . . . . . . Total Part Build Rating . | . . . . . . . . . . . . . . Part Studies Acquired 5 | . . 1 2 . 2 . . . . . . . . Parts Repaired 3 | . 1 2 . . . . . . . . . . . Time 78 | . 26 52 . . . . . . . . . . . Parts Recycled . | . . . . . . . . . . . . . . Recycled Matter . | . . . . . . . . . . . . . . Retrieved Matter . | . . . . . . . . . . . . . . Retrieved Components . | . . . . . . . . . . . . . . Parts Scanalyzed 4 | . . 4 . . . . . . . . . . . Part Schematics Acquired 4 | . . 4 . . . . . . . . . . . Parts Damaged . | . . . . . . . . . . . . . . Bothacking | -11 -10 -9 -8 -8 -8 -7 -6 -6 -5 -5 -5 -5 -5 ------------ Run | Yrd Mat Mat Mat Gar Mat Fac Fac Gar Fac Was Fac Gar Fac Used RIF Installer 3 | . . . . 1 . . . 1 . . . 1 . Robot Detection 1 | . . . . . . . . 1 . . . . . Autooverride 1 | . . . . . . . . . . . . 1 . Robots Hacked 5 | . . . . . . . . . . . 3 2 . Non-combat . | . . . . . . . . . . . . . . Combat 5 | . . . . . . . . . . . 3 2 . Autooverrided 1 | . . . . . . . . . . . . 1 . Robot Hacks Applied 5 | . . . . . . . . . . . 4 1 . find_garrison 1 | . . . . . . . . . . . 1 . . amplify_resonance 3 | . . . . . . . . . . . 2 1 . formatsys_high 1 | . . . . . . . . . . . 1 . . Relay Couplers Released 35 | . . . . 23 . . 1 7 . . . 4 . Machine Destruction 35 | . . . . 23 . . 1 7 . . . 4 . Attached 2 | . . . . . . . . . . . 1 1 . Fabnet Peak Effective % . | . . . . . . . . . . . . . . Robots Rewired . | . . . . . . . . . . . . . . Allies Hacked . | . . . . . . . . . . . . . . Hacks Repelled . | . . . . . . . . . . . . . . Allies | -11 -10 -9 -8 -8 -8 -7 -6 -6 -5 -5 -5 -5 -5 -------- Run | Yrd Mat Mat Mat Gar Mat Fac Fac Gar Fac Was Fac Gar Fac Total Allies 5 | . . . . . 1 . . 2 . . 1 1 . Largest Group 2 | . . . . . 1 . . 2 2 1 1 1 . Highest-Rated Group 142 | . . . . . 10 . . 142 142 80 29 29 . Highest-Rated Ally 80 | . . . . . 10 . . 80 80 80 29 29 . Total Orders 4 | . . . . . . . . . . . 4 . . EXPLORE 3 | . . . . . . . . . . . 3 . . RETURN 1 | . . . . . . . . . . . 1 . . Ally Attacks 40 | . . . . . . . . 7 9 18 6 . . Total Damage 1628 | . . . . . . . . 237 319 971 101 . . Kills 7 | . . . . . . . . 2 2 3 . . . Allies Corrupted 1 | . . . . . . . . . . . 1 . . Allies Melted . | . . . . . . . . . . . . . . Intel | -11 -10 -9 -8 -8 -8 -7 -6 -6 -5 -5 -5 -5 -5 ------- Run | Yrd Mat Mat Mat Gar Mat Fac Fac Gar Fac Was Fac Gar Fac Active Infowar (turns) 845 | 40 635 . . . . . . . . . 170 . . Sensors 170 | . . . . . . . . . . . 170 . . Seismic 675 | 40 635 . . . . . . . . . . . . Robot Analysis Total 3 | . 1 1 1 . . . . . . . . . . Derelict Logs Recovered . | . . . . . . . . . . . . . . Drone Launches 3 | . . . . . . . . . . . 3 . . Drone Recoveries 1 | . . . . . . . . . . . 1 . . Exploration | -11 -10 -9 -8 -8 -8 -7 -6 -6 -5 -5 -5 -5 -5 ------------- Run | Yrd Mat Mat Mat Gar Mat Fac Fac Gar Fac Was Fac Gar Fac Turns Passed 17044 | 144 1408 1401 1736 1641 1463 2599 2427 545 442 555 1303 1179 201 Spaces Moved 6616 | 67 612 529 795 750 568 974 839 214 188 208 392 352 128 Core 152 | 2 . . . . . . . . . . . 22 128 Treads 6291 | 65 612 529 795 750 568 974 839 214 188 208 392 157 . Legs 173 | . . . . . . . . . . . . 173 . Wheels . | . . . . . . . . . . . . . . Hover . | . . . . . . . . . . . . . . Flight . | . . . . . . . . . . . . . . Fastest Speed 50 | 50 160 200 155 160 160 200 213 229 222 222 160 50 50 Average Speed 199 | 156 186 203 158 176 173 216 234 229 222 224 231 242 95 Slowest Speed 2400 | 160 240 240 240 216 211 280 285 229 222 226 245 2400 200 Overloaded Moves . | . . . . . . . . . . . . . . Propulsion Burnouts . | . . . . . . . . . . . . . . Robots Hopped . | . . . . . . . . . . . . . . Potential Cave-ins . | . . . . . . . . . . . . . . Cave-ins Triggered . | . . . . . . . . . . . . . . Exploration Rate (%) 44 | 4 95 66 72 86 54 25 31 40 6 80 26 36 2 Regions Visited 13 Branch Regions . Pre-discovered Areas . | . . . . . . . . . . . . . . Known Exits Taken 4 | . 1 . 1 . . . 1 . . . 1 . . Unknown Exits Taken 4 | 1 . 1 . . 1 1 . . . . . . . Scrap Searched . | . . . . . . . . . . . . . . Spaces Dug 5 | . . . . . . . . . . 1 3 . 1 Terrain Destroyed 137 | . . . . . 27 . 58 . . 4 23 15 10 Melee . | . . . . . . . . . . . . . . Projectile 38 | . . . . . 10 . . . . 4 8 15 1 AOE 99 | . . . . . 17 . 58 . . . 15 . 9 Terrain Rammed . | . . . . . . . . . . . . . . Walls Destroyed . | . . . . . . . . . . . . . . Machines Disabled . | . . . . . . . . . . . . . . Actions | -11 -10 -9 -8 -8 -8 -7 -6 -6 -5 -5 -5 -5 -5 --------- Run | Yrd Mat Mat Mat Gar Mat Fac Fac Gar Fac Was Fac Gar Fac Total 8895 | 89 792 735 1123 917 876 1251 1079 256 209 265 617 521 165 Wait 934 | 3 94 102 179 74 166 92 54 13 11 20 81 45 . Move 6607 | 66 611 528 795 749 567 973 839 213 188 207 392 351 128 Hop . | . . . . . . . . . . . . . . Pick Up 129 | 3 18 18 14 3 9 18 18 4 3 4 7 10 . Fast Attach 107 | 7 4 4 9 4 16 17 13 4 . 3 15 10 1 Attach 54 | . 1 2 3 5 4 7 5 2 2 . 9 13 1 Detach 15 | . . 1 . 1 1 1 1 . . . 7 3 . Swap 99 | . 3 7 16 6 9 14 17 3 3 4 11 6 . Drop 188 | 1 8 16 32 3 20 28 36 8 1 12 16 7 . Fire 696 | 9 48 57 72 67 76 98 93 7 1 15 75 64 14 Melee . | . . . . . . . . . . . . . . Ram 1 | . . . . . . . . . . . . . 1 Kick . | . . . . . . . . . . . . . . Crush 24 | . 5 . 3 1 8 1 3 . . . 3 . . Escape Stasis 20 | . . . . 4 . 2 . 2 . . . 12 . Rewire 1 | . . . . . . . . . . . 1 . . Trap . | . . . . . . . . . . . . . . Miscellaneous 20 | . . . . . . . . . . . . . 20 Route ------- -11/Scrapyard -10/Materials (discovered 5 exits: *Mat x3 / [*Min x2]) -9/Materials (discovered 3 exits: *Mat x2 / [*Min]) -8/Materials (discovered 4 exits: *Fac x3 / Gar) -8/Garrison (discovered 3 exits: *Mat x3) -8/Materials -7/Factory (discovered 4 exits: *Fac x2 / [*Sto] / *Low) -6/Factory (discovered 2 exits: [*Low] / Gar) -6/Garrison -5/Factory -5/Waste -5/Factory (discovered 2 exits: [*Upp] / Gar) -5/Garrison -5/Factory History --------- Turn | Location | Event 6 | -11/Scrapyard | Discovered new exit (range 16) 145 | -11/Scrapyard | Entered Materials 317 | -10/Materials | Build established: Mutant 358 | -10/Materials | Discovered new exit (range 10) 525 | -10/Materials | Discovered new exit (range 9) 674 | -10/Materials | Central database locked down 852 | -10/Materials | Discovered new exit (range 15) 889 | -10/Materials | Identified exit to Materials 1277 | -10/Materials | Repaired Lgt. Treads 1553 | -10/Materials | Entered another Materials area 1553 | -9/Materials | Evolved 2 slots: Utility x1, Weapon x1 1846 | -9/Materials | Build established: Gunner 2251 | -9/Materials | Discovered new exit (range 7) 2508 | -9/Materials | Build established: Scavenger-Gunner 2511 | -9/Materials | Discovered new exit (range 13) 2737 | -9/Materials | Central database locked down 2804 | -9/Materials | Repaired Lgt. Treads+ 2831 | -9/Materials | Repaired Lgt. Treads+ 2887 | -9/Materials | Discovered new exit (range 16) 2954 | -9/Materials | Entered another Materials area 2954 | -8/Materials | Evolved 2 slots: Propulsion x1, Utility x1 3690 | -8/Materials | Discovered new exit (range 3) 4011 | -8/Materials | Discovered new exit (range 13) 4312 | -8/Materials | Garrison activated, responded to threat 4373 | -8/Materials | Discovered new exit (range 13) 4690 | -8/Materials | Identified exit to Garrison 4690 | -8/Materials | Entered Garrison 4710 | -8/Garrison | Garrison Relay disabled 4712 | -8/Garrison | Triggered checkpoint 4748 | -8/Garrison | Garrison Relay disabled 4856 | -8/Garrison | Triggered checkpoint 4971 | -8/Garrison | Core integrity fell below 50% 5012 | -8/Garrison | Discovered new exit (range 8) 5060 | -8/Garrison | Triggered checkpoint 5101 | -8/Garrison | Garrison Relay disabled 5180 | -8/Garrison | Triggered checkpoint 5268 | -8/Garrison | Triggered checkpoint 5333 | -8/Garrison | System corruption reached 10% 5389 | -8/Garrison | Garrison Relay disabled 5479 | -8/Garrison | Discovered new exit (range 13) 5676 | -8/Garrison | Triggered checkpoint 5729 | -8/Garrison | Garrison Relay disabled 5783 | -8/Garrison | Discovered new exit (range 12) 5840 | -8/Garrison | Installed Relay Interface Framework 5932 | -8/Garrison | Triggered checkpoint 6331 | -8/Garrison | Entered Materials 6671 | -8/Materials | Build established: Gunner 7275 | -8/Materials | Lost 6 parts (1p2n2u1w) 7378 | -8/Materials | Discovered new exit (range 13) 7516 | -8/Materials | Build established: Scavenger-Gunner 7531 | -8/Materials | First assault squad dispatched 7794 | -8/Materials | Entered Factory 7794 | -7/Factory | Evolved 2 slots: Power x1, Utility x1 8002 | -7/Factory | Discovered new exit (range 16) 8225 | -7/Factory | Discovered new exit (range 11) 8288 | -7/Factory | Identified exit to Lower Caves 8675 | -7/Factory | Discovered new exit (range 12) 10129 | -7/Factory | Discovered new exit (range 11) 10177 | -7/Factory | Lost 7 parts (1p3n2u1w) 10393 | -7/Factory | Entered another Factory area 10393 | -6/Factory | Evolved 2 slots: Utility x1, Weapon x1 10696 | -6/Factory | Build established: Scavenger-Tank 12457 | -6/Factory | Discovered new exit (range 6) 12493 | -6/Factory | First assault squad dispatched 12679 | -6/Factory | Destroyed 9 combat bots 12820 | -6/Factory | Identified exit to Garrison 12820 | -6/Factory | Entered Garrison 12820 | -6/Garrison | Warlord forces raided the area 12890 | -6/Garrison | Triggered checkpoint 12905 | -6/Garrison | Triggered checkpoint 12908 | -6/Garrison | Triggered checkpoint 12930 | -6/Garrison | Garrison Relay disabled 12958 | -6/Garrison | Triggered checkpoint 13112 | -6/Garrison | Triggered checkpoint 13143 | -6/Garrison | Discovered new exit (range 12) 13161 | -6/Garrison | Expanded RIF knowledge: Robot Detection 13219 | -6/Garrison | Found embedded Infiltrators 13245 | -6/Garrison | Warlord forces retreated 13264 | -6/Garrison | Triggered checkpoint 13298 | -6/Garrison | Garrison Relay disabled 13365 | -6/Garrison | Entered Factory 13365 | -5/Factory | Accompanied by 2 allies 13365 | -5/Factory | Evolved 2 slots: Propulsion x1, Utility x1 13673 | -5/Factory | Build established: Scavenger-Gunner 13807 | -5/Factory | Manually triggered Chute Trap 13807 | -5/Factory | Sucked down chute 13807 | -5/Factory | Entered Waste 13832 | -5/Waste | 1 allies followed down the chute 13907 | -5/Waste | Spotted C-40 Crusher 13916 | -5/Waste | Allies destroyed C-40 Crusher 13919 | -5/Waste | Allies destroyed C-40 Crusher 13923 | -5/Waste | Spotted C-40 Crusher 13928 | -5/Waste | Destroyed C-40 Crusher 13932 | -5/Waste | Spotted C-40 Crusher 13934 | -5/Waste | Destroyed C-40 Crusher 13939 | -5/Waste | Spotted C-40 Crusher 13952 | -5/Waste | Allies destroyed C-40 Crusher 13959 | -5/Waste | Spotted C-40 Crusher 13974 | -5/Waste | Destroyed C-40 Crusher 14335 | -5/Waste | Discovered new exit (range 13) 14362 | -5/Waste | Entered Factory 14514 | -5/Factory | Discovered new exit (range 84) 15338 | -5/Factory | Cargo convoy interrupted 15409 | -5/Factory | Destroyed 11 combat bots 15411 | -5/Factory | Lost 6 parts (2p2n1u1w) 15415 | -5/Factory | System corruption reached 10% 15467 | -5/Factory | System corruption reached 30% 15613 | -5/Factory | Garrison activated, responded to threat 15665 | -5/Factory | Identified exit to Garrison 15665 | -5/Factory | Entered Garrison 15711 | -5/Garrison | Triggered checkpoint 15783 | -5/Garrison | Garrison Relay disabled 15907 | -5/Garrison | Triggered checkpoint 15969 | -5/Garrison | Core integrity fell below 50% 15999 | -5/Garrison | Lost 6 parts (1p3n1u1w) 16087 | -5/Garrison | Build established: Bothacker-Gunner 16229 | -5/Garrison | Triggered checkpoint 16421 | -5/Garrison | Expanded RIF knowledge: Autooverride 16661 | -5/Garrison | Triggered checkpoint 16831 | -5/Garrison | Core integrity fell below 20% 16834 | -5/Garrison | Released all parts (9) 16840 | -5/Garrison | Discovered new exit (range 10) 16844 | -5/Garrison | Entered Factory 16865 | -5/Factory | Lost 10 parts (2p3n1u4w) 17045 | -5/Factory | Destroyed self via exploding Fusion Modulator Last Messages --------------- Imp. Plasma Cutter. 16943_ System corrupted: Energy discharge (-24). 16947_ ALERT: All DSF locations entering lockdown mode. 16950_ Dismantling Fabricator with Imp. Plasma Cutter. 16951_ Connecting with Fabricator... 16951_ Current location identified: Factory 16958_ 5TCWYN MIJM MCFVK=MJW3QOCKFU 16958_ Acquired Magnetic Acceleration Cannon. 16974_ OOSGSABDIR E